bitfinex/quotes_BTCUSD_20250508
["timestamp","ask_amount","ask_price","bid_price","bid_amount"]
[1746708305145,0.20232269,99343.0,99342.0,2.707248]
[1746708305352,0.21772269,99343.0,99342.0,2.707248]
[1746708305554,0.23292269,99343.0,99342.0,2.707248]
[1746708305956,0.23292269,99343.0,99342.0,2.491513]
[1746708306526,0.23292269,99343.0,99342.0,2.304013]
[1746708306774,0.23292269,99343.0,99342.0,0.030413]
[1746708307296,0.24231363,99343.0,99342.0,0.02479455]
[1746708307658,0.01006714,99333.0,99330.0,0.23780802]
[1746708307861,0.0315,99332.0,99329.0,0.01006755]
[1746708308075,0.0315,99332.0,99331.0,0.00880169]
[1746708308625,0.23284498,99332.0,99331.0,0.00880169]
[1746708308946,0.0315,99332.0,99331.0,0.00880169]
[1746708309155,0.0315,99332.0,99331.0,0.2101487]
[1746708309367,0.0315,99332.0,99331.0,0.00880169]
[1746708309884,0.23284498,99332.0,99331.0,0.00880169]
[1746708310071,0.0315,99332.0,99331.0,0.00880169]
[1746708310697,0.0325,99332.0,99331.0,0.01080169]
[1746708310954,0.0325,99332.0,99331.0,0.2121487]
[1746708311170,0.002,99332.0,99331.0,0.57883981]
[1746708311589,0.001,99332.0,99331.0,4.1201788]
[1746708311789,0.001,99332.0,99331.0,4.39405781]
[1746708312132,0.002,99332.0,99331.0,4.39605781]
[1746708313162,0.002,99332.0,99331.0,4.54166558]
[1746708313777,0.00939615,99341.0,99340.0,0.57086961]
[1746708314018,4e-05,99351.0,99340.0,0.57086961]
[1746708314019,4e-05,99351.0,99344.0,0.21632066]
[1746708314278,4e-05,99351.0,99344.0,5.73048466]
[1746708314813,0.0094028,99350.0,99344.0,5.73048466]
[1746708315343,0.0032961,99345.0,99344.0,5.73348466]
[1746708316795,0.0042961,99345.0,99344.0,5.73548466]
[1746708316996,0.0042961,99345.0,99344.0,6.07548466]
[1746708317535,0.0042961,99345.0,99344.0,6.10522551]
[1746708317710,0.0042961,99345.0,99344.0,6.50522551]
[1746708317859,0.0042961,99345.0,99344.0,6.61147034]
[1746708320039,1e-08,99345.0,99344.0,6.61147034]
[1746708320258,1e-08,99345.0,99344.0,1.09730634]
[1746708322554,1e-08,99345.0,99344.0,1.08210634]
[1746708322755,1e-08,99345.0,99344.0,1.06710634]
[1746708325043,1e-08,99345.0,99344.0,1.08210634]
[1746708325830,1e-08,99345.0,99344.0,1.09830634]
[1746708326031,0.002,99370.0,99367.0,0.0100637]
[1746708326275,0.002,99370.0,99369.0,0.20127001]
[1746708326425,0.002,99370.0,99369.0,5.71543401]
[1746708326800,0.002,99370.0,99369.0,5.72094707]
[1746708327228,0.0182,99370.0,99369.0,5.72094707]
[1746708327339,0.0192,99370.0,99369.0,5.72094707]
[1746708327540,0.0212,99370.0,99369.0,5.72094707]
[1746708327752,0.0212,99370.0,99369.0,5.06381907]
[1746708328167,0.0367,99370.0,99369.0,5.06381907]
[1746708328646,0.0367,99370.0,99369.0,5.06673012]
[1746708329209,0.0357,99370.0,99369.0,0.20969412]
[1746708329409,0.0357,99370.0,99369.0,5.39400712]
[1746708329621,0.0357,99370.0,99369.0,5.39500712]
[1746708330184,0.0202,99370.0,99369.0,5.39500712]
[1746708330424,0.0202,99370.0,99369.0,5.28020812]
[1746708330626,0.02024,99370.0,99369.0,5.28020812]
[1746708334476,0.00404,99370.0,99369.0,5.28020812]
[1746708335565,0.01974,99370.0,99369.0,5.28020812]
[1746708336391,0.00404,99370.0,99369.0,5.28020812]
[1746708338196,0.01994,99370.0,99369.0,5.28020812]
[1746708338396,0.03524,99370.0,99369.0,4.96098212]
[1746708339696,0.01994,99370.0,99369.0,4.96098212]
[1746708340518,0.01994,99370.0,99369.0,4.94598212]
[1746708341955,0.03644,99370.0,99369.0,4.94598212]
[1746708342399,0.03644,99370.0,99369.0,3.87756711]
[1746708342575,0.03644,99370.0,99369.0,4.07883712]
[1746708343198,0.03644,99370.0,99369.0,3.89013872]
[1746708343401,0.23635525,99370.0,99369.0,0.38069572]
[1746708343602,0.23635525,99370.0,99369.0,0.22549572]
[1746708343887,0.23635525,99370.0,99369.0,0.21292411]
[1746708344408,0.23435525,99370.0,99369.0,0.12162411]
[1746708344651,0.23435525,99370.0,99369.0,0.001]
[1746708344812,0.23635525,99370.0,99369.0,0.001]
[1746708345496,0.20128913,99360.0,99357.0,0.22392927]
[1746708345681,0.23189027,99359.0,99358.0,3.680971]
[1746708345886,0.23189027,99359.0,99358.0,3.68937769]
[1746708346095,0.23189027,99359.0,99358.0,3.02124169]
[1746708346816,0.23189027,99359.0,99358.0,2.87284169]
[1746708347308,0.23189027,99359.0,99358.0,1.62548369]
[1746708347509,0.23189027,99359.0,99358.0,0.84177269]
[1746708347712,0.23189027,99359.0,99358.0,0.60810669]
[1746708347911,0.23189027,99359.0,99358.0,0.60910669]
[1746708348267,0.23189027,99359.0,99358.0,0.59780669]
[1746708348472,0.23189027,99359.0,99358.0,0.15230669]
[1746708348679,0.23189027,99359.0,99358.0,0.01040669]
[1746708348939,0.23189027,99359.0,99358.0,0.002]
[1746708349138,0.01006481,99356.0,99351.0,0.21137179]
[1746708349294,0.0317,99354.0,99352.0,2.676835]
[1746708349499,0.0317,99353.0,99352.0,2.68389547]
[1746708349907,0.23300242,99353.0,99352.0,2.68389547]
[1746708350309,0.0317,99353.0,99352.0,2.68389547]
[1746708350896,0.23300242,99353.0,99352.0,2.68389547]
[1746708351102,0.0317,99353.0,99352.0,2.88519992]
[1746708351742,0.0317,99353.0,99352.0,2.88619992]
[1746708351949,0.0317,99353.0,99352.0,2.89879071]
[1746708352188,0.0317,99353.0,99352.0,0.22195571]
[1746708352391,0.0317,99353.0,99352.0,2.89979071]
[1746708353391,0.0165,99353.0,99352.0,2.89979071]
[1746708353806,0.01006491,99355.0,99353.0,0.0151]
[1746708354152,0.20127969,99365.0,99360.0,0.2113511]
[1746708354365,0.20127969,99365.0,99361.0,0.20128427]
[1746708354572,0.21134135,99366.0,99362.0,0.01259079]
[1746708354723,0.00251601,99365.0,99363.0,2.68942579]
[1746708354929,0.01257991,99365.0,99363.0,0.01259079]
[1746708355121,0.04387991,99365.0,99364.0,0.01258752]
[1746708355590,0.0413639,99365.0,99364.0,0.01258752]
[1746708355882,0.24515802,99365.0,99364.0,0.01258752]
[1746708356091,0.24464201,99365.0,99364.0,0.01258752]
[1746708356632,0.24664201,99365.0,99364.0,0.01258752]
[1746708356843,0.24668201,99365.0,99364.0,0.01258752]
[1746708357234,0.03334,99365.0,99364.0,0.21386766]
[1746708357554,0.01954,99365.0,99364.0,0.21940098]
[1746708357760,0.00404,99365.0,99364.0,0.21940098]
[1746708357956,0.00404,99365.0,99364.0,2.89623598]
[1746708358601,0.00404,99365.0,99364.0,2.89775066]
[1746708361292,0.00404,99365.0,99364.0,5.73507966]
[1746708364593,0.00404,99365.0,99364.0,3.73562566]
[1746708365739,0.01924,99365.0,99364.0,3.73562566]
[1746708365984,0.03454,99365.0,99364.0,3.56479236]
[1746708366370,0.03454,99365.0,99364.0,3.51645136]
[1746708366555,0.03454,99365.0,99364.0,2.96458836]
[1746708367530,0.01924,99365.0,99364.0,2.96458836]
[1746708368381,0.00404,99365.0,99364.0,2.96458836]
[1746708368583,0.00404,99365.0,99364.0,0.28775336]
[1746708368712,0.00404,99365.0,99364.0,5.57431736]
[1746708372514,0.00404,99365.0,99364.0,5.27778336]
[1746708372644,0.00404,99365.0,99364.0,4.09854736]
[1746708373972,0.01914,99365.0,99364.0,4.045442]
[1746708374172,0.03494,99365.0,99364.0,0.65682814]
[1746708374375,0.03494,99365.0,99364.0,0.455548]
[1746708374801,0.03494,99365.0,99364.0,0.65682814]
[1746708378631,0.03494,99365.0,99364.0,0.455548]
[1746708378808,0.037456,99365.0,99364.0,0.455548]
[1746708378967,0.037456,99365.0,99364.0,0.65682814]
[1746708379163,0.03494,99365.0,99364.0,0.65682814]
[1746708380569,0.03402873,99365.0,99364.0,0.62311957]
[1746708380773,0.00312873,99365.0,99364.0,0.62303283]
[1746708381933,0.00312873,99365.0,99364.0,0.63523121]
[1746708385746,0.00312873,99365.0,99364.0,0.21891497]
[1746708385932,0.00312873,99365.0,99364.0,2.86356697]
[1746708388707,0.00316873,99365.0,99364.0,2.86356697]
[1746708394543,0.00316873,99365.0,99364.0,4.11440597]
[1746708396349,0.00208,99365.0,99364.0,4.11440597]
[1746708396493,0.00308,99365.0,99364.0,0.21891497]
[1746708396694,0.00108,99365.0,99364.0,0.21891497]
[1746708396899,0.00108,99365.0,99364.0,5.70089597]
[1746708397117,0.00308,99365.0,99364.0,5.70089597]
[1746708397622,0.00308,99365.0,99364.0,6.04089597]
[1746708397794,0.00108,99365.0,99364.0,6.05619597]
[1746708398031,8e-05,99365.0,99364.0,6.05619597]
[1746708398214,8e-05,99378.0,99377.0,0.20125381]
[1746708398476,0.00021736,99378.0,99377.0,5.70105028]
[1746708399015,0.00021736,99378.0,99377.0,6.05635028]
[1746708399216,0.00021736,99378.0,99377.0,6.17155805]
[1746708400121,0.00021736,99378.0,99377.0,6.17355805]
[1746708400552,0.00021736,99378.0,99377.0,6.17455805]
[1746708401650,0.00032,99381.0,99380.0,0.20124773]
[1746708401823,0.00044434,99381.0,99380.0,5.7006409]
[1746708402042,0.00044434,99381.0,99380.0,6.09862873]
[1746708402188,0.00044434,99381.0,99380.0,6.11491532]
[1746708402593,0.00044434,99381.0,99380.0,6.09951532]
[1746708402937,0.00044434,99381.0,99380.0,5.91019257]
[1746708403155,0.00044434,99381.0,99380.0,5.89926759]
[1746708403532,0.00044434,99381.0,99380.0,6.10051532]
[1746708403760,0.00044434,99381.0,99380.0,6.10193192]
[1746708404928,0.00044434,99381.0,99380.0,4.57926092]
[1746708407434,0.00044434,99381.0,99380.0,0.95995092]
[1746708407584,0.00044434,99381.0,99380.0,6.44193192]
[1746708408137,0.00044434,99381.0,99380.0,4.87023792]
[1746708408340,0.03134434,99381.0,99380.0,4.22887592]
[1746708408570,0.03134434,99381.0,99380.0,3.82887592]
[1746708409304,0.02918124,99381.0,99380.0,3.82887592]
[1746708410665,0.0152,99381.0,99380.0,3.82887592]
[1746708410869,0.0152,99381.0,99380.0,3.42914292]
[1746708411005,0.0152,99381.0,99380.0,3.20460292]
[1746708412251,0.0317,99381.0,99380.0,3.20460292]
[1746708412636,0.0317,99381.0,99380.0,3.00335519]
[1746708412841,0.0317,99381.0,99380.0,1.02340319]
[1746708413239,0.23294571,99381.0,99380.0,0.55620319]
[1746708413727,0.23294571,99381.0,99380.0,0.22520319]
[1746708416193,0.23294571,99381.0,99380.0,0.22412475]
[1746708416400,0.23294571,99381.0,99380.0,0.22496396]
[1746708418154,0.23294571,99381.0,99380.0,0.01846396]
[1746708419057,0.23294571,99381.0,99380.0,2.66311596]
[1746708420747,0.23294571,99381.0,99380.0,2.02626396]
[1746708421104,0.23294571,99381.0,99380.0,1.96396396]
[1746708421338,0.23294571,99381.0,99380.0,1.76096396]
[1746708421529,0.23294571,99381.0,99380.0,0.37846396]
[1746708421868,0.23294571,99381.0,99380.0,0.01846396]
[1746708422220,0.23294571,99381.0,99380.0,0.01319838]
[1746708422647,0.33361263,99381.0,99380.0,0.01319838]
[1746708422850,0.33361263,99381.0,99380.0,0.001]
[1746708423176,0.33361263,99381.0,99369.0,0.01219838]
[1746708423177,0.20126798,99370.0,99369.0,0.01219838]
[1746708423376,0.21746798,99370.0,99369.0,0.01219838]
[1746708423633,0.20127079,99369.0,99367.0,0.0100637]
[1746708423834,0.01006319,99372.0,99368.0,0.34]
[1746708423835,0.2113311,99371.0,99368.0,0.34]
[1746708424056,0.01006329,99371.0,99369.0,2.644652]
[1746708424260,0.0162,99371.0,99369.0,2.84592165]
[1746708424459,0.21746774,99371.0,99370.0,2.65684125]
[1746708425645,0.21746596,99371.0,99370.0,2.65684125]
[1746708425847,0.0162,99371.0,99370.0,2.86195011]
[1746708426056,0.21746596,99371.0,99370.0,2.66268213]
[1746708426959,0.0162,99371.0,99370.0,2.66268213]
[1746708427097,0.0162,99371.0,99370.0,2.66368213]
[1746708428330,0.0164,99380.0,99377.0,0.01006269]
[1746708428605,0.01006147,99389.0,99385.0,0.01006188]
[1746708428794,0.01006167,99387.0,99386.0,2.644652]
[1746708429130,0.0162,99387.0,99386.0,0.00536348]
[1746708429343,0.0162,99387.0,99386.0,2.66220473]
[1746708430515,0.0182,99387.0,99386.0,2.66220473]
[1746708431161,0.0202,99387.0,99386.0,2.66220473]
[1746708431665,0.0202,99387.0,99386.0,2.68341439]
[1746708433996,0.0202,99387.0,99386.0,2.6825338]
[1746708435276,0.0202,99387.0,99386.0,2.53136359]
[1746708435481,0.0202,99387.0,99386.0,2.53136412]
[1746708435982,0.004,99387.0,99386.0,2.53136412]
[1746708436224,0.004,99387.0,99386.0,5.36869312]
[1746708437193,0.22033356,99387.0,99386.0,5.36869312]
[1746708437320,0.22033356,99387.0,99386.0,4.49075512]
[1746708437532,0.23683356,99387.0,99386.0,4.49075512]
[1746708437744,0.0356,99387.0,99386.0,4.49075512]
[1746708437942,0.0191,99387.0,99386.0,4.49075512]
[1746708438396,0.0191,99387.0,99386.0,4.6919907]
[1746708438582,0.0191,99387.0,99386.0,4.49075512]
[1746708439108,0.22033356,99387.0,99386.0,4.49075512]
[1746708440899,0.004,99387.0,99386.0,4.49075512]
[1746708441111,0.004,99387.0,99386.0,4.6919907]
[1746708442856,0.024,99387.0,99386.0,4.6919907]
[1746708445491,0.024,99387.0,99386.0,4.68846449]
[1746708446636,0.0403,99387.0,99386.0,4.68846449]
[1746708446896,0.02404,99387.0,99386.0,4.68846449]
[1746708447036,0.25787356,99387.0,99386.0,3.39778691]
[1746708447236,0.05664,99387.0,99386.0,3.24071391]
[1746708447447,0.05664,99387.0,99386.0,3.44194949]
[1746708447652,0.05664,99387.0,99386.0,0.03339891]
[1746708447879,0.05915549,99387.0,99386.0,0.03339891]
[1746708448076,0.26038905,99387.0,99386.0,0.03339891]
[1746708448305,0.25787356,99387.0,99386.0,3.65252691]
[1746708448478,0.25787356,99387.0,99386.0,3.62332791]
[1746708449322,0.24157356,99387.0,99386.0,3.62332791]
[1746708450683,0.25707356,99387.0,99386.0,3.62332791]
[1746708452181,0.25707356,99387.0,99386.0,3.21856291]
[1746708455412,0.24157356,99387.0,99386.0,3.21856291]
[1746708458335,0.22527356,99387.0,99386.0,3.21856291]
[1746708458542,0.22527356,99387.0,99386.0,0.03339891]
[1746708459102,0.24117356,99387.0,99386.0,0.03339891]
[1746708459263,0.24117356,99387.0,99386.0,5.05008291]
[1746708459834,0.03994,99387.0,99386.0,5.01473566]
[1746708460008,0.22368903,99387.0,99386.0,5.01473566]
[1746708460183,0.22117356,99387.0,99386.0,5.02694585]
[1746708461707,0.22117356,99387.0,99386.0,3.65154985]
[1746708462468,0.22117356,99387.0,99386.0,0.42241985]
[1746708462469,0.23757356,99387.0,99386.0,0.42241985]
[1746708468204,0.23757356,99387.0,99386.0,0.03341985]
[1746708468408,0.33824048,99387.0,99386.0,0.01221019]
[1746708468612,0.33824048,99387.0,99386.0,0.03136497]
[1746708475361,0.3373744,99387.0,99386.0,0.03136497]
[1746708486100,0.3373744,99387.0,99386.0,0.01221019]
[1746708487709,0.3373744,99387.0,99386.0,0.03158076]
[1746708492197,0.20440748,99387.0,99386.0,0.03158076]
[1746708492589,0.00317392,99387.0,99386.0,0.03158076]
[1746708492803,0.00317392,99387.0,99386.0,0.26401634]
[1746708493027,0.00317392,99387.0,99386.0,0.60401634]
[1746708493225,0.00317392,99387.0,99386.0,5.93578434]
[1746708493734,4e-05,99387.0,99386.0,5.93578434]
[1746708493856,4e-05,99387.0,99386.0,5.93678434]
[1746708494609,0.00104,99387.0,99386.0,5.93978434]
[1746708495280,0.00104,99387.0,99386.0,5.93878434]
[1746708495476,0.00204,99387.0,99386.0,5.94278434]
[1746708496753,0.00204,99387.0,99386.0,6.34278434]
[1746708502605,0.002,99395.0,99394.0,0.55641938]
[1746708502798,0.002,99395.0,99394.0,5.90348738]
[1746708503046,0.002,99395.0,99394.0,5.91569757]
[1746708503499,0.002,99395.0,99394.0,5.90039757]
[1746708504214,0.01005864,99417.0,99410.0,0.201187]
[1746708504481,0.01005894,99414.0,99410.0,0.201187]
[1746708504713,0.21123887,99414.0,99410.0,5.34397819]
[1746708504951,0.01005904,99413.0,99410.0,5.34397819]
[1746708505184,0.00251484,99412.0,99410.0,5.30611819]
[1746708505410,0.21756497,99411.0,99410.0,4.73568785]
[1746708505672,0.21770228,99411.0,99410.0,4.73868785]
[1746708505895,0.21770228,99411.0,99410.0,3.79934885]
[1746708506424,0.01651731,99411.0,99410.0,3.79934885]
[1746708507592,0.01903215,99411.0,99410.0,3.79934885]
[1746708507816,0.01903215,99411.0,99410.0,0.02560385]
[1746708508046,0.01903215,99411.0,99410.0,5.21884785]
[1746708508267,0.01903215,99411.0,99410.0,4.97289419]
[1746708508441,0.01903215,99411.0,99410.0,4.63835519]
[1746708509173,0.01903215,99411.0,99410.0,4.50346619]
[1746708509397,0.01903215,99411.0,99410.0,4.51285985]
[1746708509952,0.03433215,99411.0,99410.0,3.61149485]
[1746708510129,0.03433215,99411.0,99410.0,2.86779485]
[1746708510735,0.03433215,99411.0,99410.0,2.65559485]
[1746708510941,0.01651731,99411.0,99410.0,1.12144585]
[1746708511544,0.20411717,99411.0,99410.0,1.12144585]
[1746708511722,0.20411717,99411.0,99410.0,1.11205219]
[1746708512538,0.20415717,99411.0,99410.0,1.11205219]
[1746708513395,0.22075717,99411.0,99410.0,1.11205219]
[1746708513602,0.21824228,99411.0,99410.0,1.11205219]
[1746708513742,0.21824228,99411.0,99410.0,1.12144044]
[1746708514346,0.21824228,99411.0,99410.0,0.90004533]
[1746708517394,0.23374228,99411.0,99410.0,0.90004533]
[1746708518191,0.21824228,99411.0,99410.0,0.90004533]
[1746708518592,0.21824228,99411.0,99410.0,0.00938825]
[1746708518799,0.21124907,99409.0,99405.0,0.0453323]
[1746708519102,0.21125484,99406.0,99403.0,0.4]
[1746708519314,0.21125484,99406.0,99404.0,5.126584]
[1746708519479,0.22735484,99406.0,99404.0,5.126584]
[1746708519674,0.22735484,99406.0,99404.0,4.811742]
[1746708519887,0.22735484,99406.0,99405.0,0.00704687]
[1746708520084,0.22735484,99406.0,99405.0,4.68791487]
[1746708520386,0.22735484,99406.0,99405.0,4.67583487]
[1746708520632,0.02615975,99406.0,99405.0,4.49866587]
[1746708520835,0.01005975,99406.0,99405.0,4.49866587]
[1746708521084,0.01005975,99406.0,99405.0,4.49966587]
[1746708521264,0.01005975,99406.0,99405.0,4.50066587]
[1746708521484,0.01005965,99407.0,99405.0,4.50066587]
[1746708521644,0.02525965,99407.0,99406.0,4.461418]
[1746708521978,0.02525965,99407.0,99406.0,4.46846487]
[1746708522704,0.21125292,99407.0,99406.0,4.46846487]
[1746708522841,0.22645292,99407.0,99406.0,4.46846487]
[1746708523208,0.24265292,99407.0,99406.0,2.47564487]
[1746708523765,0.24265292,99407.0,99406.0,2.47664487]
[1746708524832,0.24265292,99407.0,99406.0,2.47764487]
[1746708525055,0.24265292,99407.0,99406.0,2.35197287]
[1746708525192,0.24265292,99407.0,99406.0,2.33217287]
[1746708525588,0.22637406,99407.0,99406.0,2.33217287]
[1746708526192,0.22637406,99407.0,99406.0,2.325126]
[1746708526635,0.22637406,99407.0,99406.0,2.33732398]
[1746708526838,0.24177406,99407.0,99406.0,2.33732398]
[1746708527818,0.22637406,99407.0,99406.0,2.33732398]
[1746708528026,0.22637406,99407.0,99406.0,2.34439109]
[1746708529536,0.22637406,99407.0,99406.0,0.02126509]
[1746708529982,0.22637406,99407.0,99406.0,2.56215709]
[1746708530353,0.22637406,99407.0,99406.0,5.05659609]
[1746708530499,0.22637406,99407.0,99406.0,5.02136209]
[1746708530913,0.22637406,99407.0,99406.0,4.833409]
[1746708531116,0.22637406,99407.0,99406.0,4.806229]
[1746708531524,0.22637406,99407.0,99406.0,4.81565539]
[1746708531731,0.34254098,99407.0,99406.0,0.00942639]
[1746708532344,0.20123356,99387.0,99375.0,0.002]
[1746708532555,0.23514928,99387.0,99380.0,0.11698584]
[1746708532729,0.23394571,99381.0,99380.0,0.11698584]
[1746708532968,0.20125583,99376.0,99375.0,0.002]
[1746708533170,0.23647166,99376.0,99375.0,0.002]
[1746708533378,0.23395583,99376.0,99375.0,0.002]
[1746708533582,0.23395583,99376.0,99375.0,0.02917052]
[1746708533799,0.23395583,99376.0,99375.0,2.36031636]
[1746708534011,0.23400157,99376.0,99375.0,2.36031636]
[1746708535215,0.23400157,99376.0,99375.0,2.36231636]
[1746708536104,0.23400157,99376.0,99375.0,2.36431636]
[1746708536629,0.23400157,99376.0,99375.0,2.38204332]
[1746708539414,0.20130157,99376.0,99375.0,2.38204332]
[1746708539600,0.20381735,99376.0,99375.0,2.38204332]
[1746708540361,0.20381735,99376.0,99375.0,0.03315132]
[1746708540765,0.20381735,99376.0,99375.0,2.38204332]
[1746708540968,0.23531735,99376.0,99375.0,2.38204332]
[1746708541174,0.23280157,99376.0,99375.0,2.38204332]
[1746708541396,0.23210985,99376.0,99375.0,2.38204332]
[1746708542629,0.21700985,99376.0,99375.0,2.37261896]
[1746708542946,0.21700985,99376.0,99375.0,2.38438696]
[1746708545125,0.23350985,99376.0,99375.0,2.38438696]
[1746708545917,0.23350985,99376.0,99375.0,2.36666]
[1746708546120,0.33417677,99376.0,99375.0,2.36666]
[1746708546583,0.33417677,99376.0,99375.0,2.350892]
[1746708546875,0.33417677,99376.0,99375.0,2.351892]
[1746708547029,0.33417677,99376.0,99375.0,2.352892]
[1746708547210,0.33417677,99376.0,99375.0,2.37036707]
[1746708551669,0.33417677,99376.0,99375.0,0.02147507]
[1746708551884,0.33417677,99376.0,99375.0,2.37036707]
[1746708552086,0.20060985,99376.0,99375.0,2.37036707]
[1746708552298,4.574e-05,99376.0,99375.0,2.57162493]
[1746708552451,4.574e-05,99376.0,99375.0,2.58300515]
[1746708553073,4.574e-05,99376.0,99375.0,2.59239325]
[1746708553576,4.574e-05,99376.0,99375.0,5.22453825]
[1746708553780,4.574e-05,99376.0,99375.0,5.02328039]
[1746708557046,4.574e-05,99376.0,99375.0,5.37878039]
[1746708557247,4.574e-05,99376.0,99375.0,5.39488039]
[1746708558856,4.574e-05,99376.0,99375.0,5.59613825]
[1746708559062,4.574e-05,99376.0,99375.0,5.58003825]
[1746708561075,4.574e-05,99376.0,99375.0,5.98003825]
[1746708562829,4.574e-05,99376.0,99375.0,5.99573825]
[1746708563789,4.574e-05,99376.0,99375.0,5.98003825]
[1746708564606,4.574e-05,99376.0,99375.0,5.99623825]
[1746708568940,4.574e-05,99376.0,99375.0,6.11144602]
[1746708569663,0.02525965,99407.0,99375.0,6.11144602]
[1746708569664,0.22734884,99409.0,99402.0,0.20120319]
[1746708569877,0.20119408,99407.0,99404.0,0.01005995]
[1746708570077,0.21729408,99407.0,99405.0,4.981037]
[1746708570324,0.0161,99410.0,99409.0,0.20118871]
[1746708570524,0.00042592,99411.0,99409.0,0.20118871]
[1746708570525,0.00042592,99411.0,99409.0,5.18222571]
[1746708570756,0.00042592,99411.0,99410.0,4.99241722]
[1746708571641,0.00042592,99411.0,99410.0,5.00180532]
[1746708571973,0.00242592,99411.0,99410.0,5.00180532]
[1746708572146,0.20361089,99411.0,99410.0,5.00180532]
[1746708572347,0.21861089,99411.0,99410.0,5.00180532]
[1746708572557,0.23361089,99411.0,99410.0,5.00180532]
[1746708573123,0.23361089,99411.0,99410.0,4.99241722]
[1746708573760,0.23661089,99411.0,99410.0,4.99241722]
[1746708575509,0.22161089,99411.0,99410.0,4.99241722]
[1746708579102,0.21161089,99411.0,99410.0,4.99241722]
[1746708579542,0.21161089,99411.0,99410.0,0.01138022]
[1746708579685,0.21161089,99411.0,99410.0,4.99241722]
[1746708586530,0.018,99411.0,99410.0,4.99241722]
[1746708587041,0.21918497,99411.0,99410.0,4.99241722]
[1746708588510,0.003,99411.0,99410.0,4.99241722]
[1746708588711,0.003,99411.0,99410.0,5.19360422]
[1746708590355,0.003,99411.0,99410.0,0.21256722]
[1746708590596,0.00304,99411.0,99410.0,5.19360422]
[1746708591112,0.00304,99411.0,99410.0,5.21020422]
[1746708591490,0.00304,99411.0,99410.0,5.19360422]
[1746708591874,0.00304,99411.0,99410.0,5.56490422]
[1746708592391,0.00304,99411.0,99410.0,5.96490422]
[1746708592937,4e-05,99411.0,99410.0,5.96490422]
[1746708593140,0.00104,99411.0,99410.0,5.96490422]
[1746708593366,0.00104,99411.0,99410.0,6.06557114]
[1746708593567,0.00104,99411.0,99410.0,6.08011199]
[1746708593768,4e-05,99431.0,99430.0,0.21624653]
[1746708593970,0.00049759,99431.0,99430.0,0.55624653]
[1746708594196,0.00049759,99431.0,99430.0,5.54866375]
[1746708594407,0.00049759,99431.0,99430.0,5.58017215]
[1746708594910,0.00049759,99431.0,99430.0,5.56427215]
[1746708595067,0.00049759,99431.0,99430.0,5.58017215]
[1746708595319,0.00049759,99431.0,99430.0,5.58217215]
[1746708595527,0.002,99445.0,99444.0,0.20111821]
[1746708595720,0.00210584,99445.0,99444.0,5.18215521]
[1746708596286,0.00210584,99445.0,99444.0,5.19353543]
[1746708597113,0.00310584,99445.0,99444.0,5.19353543]
[1746708597514,0.00410584,99445.0,99444.0,5.20943543]
[1746708598797,0.00410584,99445.0,99444.0,5.19353543]
[1746708599309,0.00410584,99445.0,99444.0,5.59353543]
[1746708600156,0.00410584,99445.0,99444.0,5.39241722]
[1746708600393,0.00410584,99445.0,99444.0,2.93134822]
[1746708600592,0.01940584,99445.0,99444.0,2.93134822]
[1746708600808,0.01940584,99445.0,99444.0,2.53134822]
[1746708601182,0.01940584,99445.0,99444.0,0.01138022]
[1746708601564,0.01940584,99445.0,99444.0,4.99241722]
[1746708604936,0.00410584,99445.0,99444.0,4.99241722]
[1746708607023,0.00410584,99445.0,99444.0,5.19353543]
[1746708607443,0.00354998,99445.0,99444.0,5.19353543]
[1746708609305,0.00354998,99445.0,99444.0,5.59353543]
[1746708610640,0.00354998,99445.0,99444.0,5.39241722]
[1746708610843,0.03364998,99445.0,99444.0,5.59353543]
[1746708611176,0.00354998,99445.0,99444.0,5.19353543]
[1746708617501,0.00354998,99445.0,99444.0,2.56139043]
[1746708617723,0.00354998,99445.0,99444.0,0.21249843]
[1746708617931,0.00354998,99445.0,99444.0,5.19353543]
[1746708618825,0.00354998,99445.0,99444.0,5.59353543]
[1746708621911,0.01864998,99445.0,99444.0,5.59353543]
[1746708622327,0.00354998,99445.0,99444.0,5.19353543]
[1746708626212,0.00354998,99445.0,99444.0,4.981037]
[1746708626413,0.00354998,99445.0,99444.0,5.58215521]
[1746708628236,0.00354998,99445.0,99444.0,6.06856298]
[1746708628433,0.0153,99465.0,99461.0,0.01005419]
[1746708628634,0.21112743,99466.0,99463.0,0.20107873]
[1746708628845,0.0156,99466.0,99465.0,0.20107575]
[1746708629067,0.0156,99466.0,99465.0,5.18211275]
[1746708629344,0.0175,99470.0,99469.0,0.20106766]
[1746708629552,0.002,99470.0,99469.0,5.52210466]
[1746708630126,0.002,99470.0,99469.0,5.53750466]
[1746708631357,0.002,99470.0,99469.0,5.54508148]
[1746708631535,0.002,99470.0,99469.0,5.55384671]
[1746708631926,0.0163,99498.0,99486.0,0.34]
[1746708632160,0.0163,99498.0,99493.0,0.20101909]
[1746708632161,0.0021372,99495.0,99493.0,0.20101909]
[1746708632357,0.0021372,99495.0,99494.0,4.981037]
[1746708632966,0.0184372,99495.0,99494.0,4.981037]
[1746708633181,0.0184372,99495.0,99493.0,4.72342471]
[1746708633403,0.0184372,99495.0,99494.0,4.981037]
[1746708633633,0.0204372,99495.0,99494.0,4.981037]
[1746708634266,0.0214372,99495.0,99494.0,4.981037]
[1746708634850,0.01973718,99495.0,99494.0,4.981037]
[1746708635372,0.01873718,99495.0,99494.0,4.98371986]
[1746708635576,0.02173718,99495.0,99494.0,4.98371986]
[1746708635943,0.00543718,99495.0,99494.0,4.98371986]
[1746708637716,0.00543718,99495.0,99494.0,5.38371986]
[1746708638262,0.00543718,99495.0,99494.0,4.98371986]
[1746708638473,0.00543718,99495.0,99494.0,4.99472409]
[1746708639238,0.00543718,99495.0,99494.0,0.01368709]
[1746708639548,0.00543718,99495.0,99494.0,4.99472409]
[1746708642328,0.00543718,99495.0,99494.0,5.39472409]
[1746708643363,0.00547718,99495.0,99494.0,5.59574123]
[1746708643798,0.00547718,99495.0,99494.0,5.60154958]
[1746708646449,0.02077718,99495.0,99494.0,5.60154958]
[1746708646632,0.2377923,99495.0,99494.0,3.09529044]
[1746708646839,0.2377923,99495.0,99494.0,2.42072544]
[1746708647040,0.2377923,99495.0,99494.0,2.20955621]
[1746708647314,0.2377923,99495.0,99494.0,1.87345621]
[1746708647522,0.2377923,99495.0,99494.0,1.84629921]
[1746708648750,0.2374923,99495.0,99494.0,1.84629921]
[1746708648949,0.2374923,99495.0,99494.0,2.09775721]
[1746708649147,0.03647718,99495.0,99494.0,4.98952821]
[1746708649355,0.02077718,99495.0,99494.0,4.98952821]
[1746708649768,0.2217923,99495.0,99494.0,4.98952821]
[1746708650096,0.2217923,99495.0,99494.0,0.00849121]
[1746708650306,0.2217923,99495.0,99494.0,4.98952821]
[1746708651158,0.2217923,99495.0,99494.0,5.00052129]